[Event "Marshall CC U2400 April 2024"]
[Site "New York"]
[Date "2024.04.20"]
[Round "2.5"]
[White "Yang, Leah"]
[Black "Sarkar, Justin"]
[Result "0-1"]
[ECO "B23"]
[WhiteElo "1676"]
[BlackElo "2279"]
[Annotator "TA"]
[PlyCount "112"]
[EventDate "2024.04.20"]
[EventType "swiss"]
[EventCountry "USA"]
[SourceTitle "playchess.com"]
[Source "ChessBase"]
[SourceQuality "1"]
[TimeControl "5400+30"]

{[%evp 9,111,-17,-6,-15,-15,-15,-5,-9,-5,-13,-1,-18,-12,0,0,-81,-97,-80,-80,-60,-70,-127,-137,-152,-141,-147,-132,-145,-139,-147,-124,-140,-98,-111,-110,-113,-102,-167,-166,-164,-162,-168,-142,-168,-168,-198,-184,-220,-183,-327,-159,-381,-371,-360,-286,-441,-348,-518,-501,-490,-466,-662,-670,-672,-575,-1353,-971,-1525,-1592,-1643,-1634,-1543,-1225,-3477,-3308,-4898,-3273,-3204,-3181,-29981,-29982,-29982,-29983,-29985,-29986,-29993,-29994,-29996,-29995,-29995,-29995,-29995,-29996,-29996,-29997,-29997,-29996,-29997,-29996,-29997,-29998,-29998,-29999,-29999]} 1. e4 {[%emt 0:00:03]} c5 {[%emt 0:00:04]} 2. Nc3 {[%emt 0:00:06]} Nc6 {[%emt 0:00:33]} 3. Bb5 {[%emt 0:00:15]} Nd4 {[%emt 0:00:17]} 4. Bc4 {[%emt 0:00:07]} Nf6 {[%emt 0:02:36]} 5. d3 {[%emt 0:00:28]} e6 {[%emt 0:04:34]} 6. Nge2 {[%emt 0:01:15]} d5 {[%emt 0:01:28]} 7. exd5 {[%emt 0:01:47]} exd5 {[%emt 0:00:06]} 8. Bb3 {[%emt 0:00:31] The position is equal.} Nxb3 {[%emt 0:01:21]} 9. axb3 {[%emt 0:00:11]} d4 {[%emt 0:01:02]} 10. Ne4 {[%emt 0:01:12]} Be7 {[%emt 0:03:10]} 11. O-O {[%emt 0:00:39]} O-O {[%emt 0:00:32]} 12. Bf4 {[%emt 0:01:24]} (12. Nxf6+ $11 {remains equal.} Bxf6 13. Ng3) 12... Nd5 $17 {[%emt 0:05:33]} 13. Re1 {[%emt 0:02:47]} f5 {[%emt 0:04:48]} 14. Nd2 {[%emt 0:01:29]} Bf6 {[%emt 0:09:49]} 15. Bg3 {[%emt 0:01:25]} ({White should play} 15. Nf3 $15) 15... g5 {[%emt 0:00:37]} 16. h3 {[%emt 0:00:30]} f4 {[%emt 0:00:30]} 17. Bh2 {[%emt 0:00:09]} Bg7 {[%emt 0:02:43]} 18. Kh1 {[%emt 0:01:17]} b6 {[%emt 0:00:26] Black is more active.} 19. Ng1 {[%emt 0:00:18]} Nb4 {[%emt 0:03:19]} 20. Ngf3 {[%emt 0:00:43]} Bb7 {[%emt 0:03:52]} 21. Ne4 {[%emt 0:00:48]} h6 {[%emt 0:01:08]} 22. Nfd2 {[%emt 0:02:58]} Qd7 {[%emt 0:05:31]} 23. f3 {[%emt 0:05:30]} (23. Rc1 $17 {was called for.}) 23... Nd5 $19 {[%emt 0:00:43]} 24. Nc4 {[%emt 0:01:02]} Ne3 {[%emt 0:00:47]} 25. Qe2 {[%emt 0:01:03]} Bd5 {[%emt 0:07:17]} 26. Bg1 {[%emt 0:01:28]} Rad8 {[%emt 0:01:21]} 27. Bxe3 {[%emt 0:00:19]} dxe3 {[%emt 0:02:46]} 28. Ra2 {[%emt 0:01:17] White is weak on the dark squares} Rf7 {[%emt 0:17:46]} 29. Rea1 {[%emt 0:01:12]} (29. Ra6 {was worth a try.}) 29... Qc6 {[%emt 0:01:20]} (29... Bxe4 $19 {is more deadly.} 30. fxe4 Qe6) 30. Rxa7 $2 {[%emt 0:01:11] Loses the game.} (30. Nc3 $17) 30... Rxa7 {[%emt 0:00:06]} 31. Rxa7 {[%emt 0:00:07]} b5 {[%emt 0:00:23]} 32. Na3 {[%emt 0:01:49]} (32. Nxe3 $142 fxe3 33. Qxe3) 32... Qb6 {[%emt 0:00:32]} (32... Bxb2 33. c4 Bxe4 34. Qxb2 $11) 33. Re7 {[%emt 0:02:15]} (33. Nxb5 $142 Qxb5 34. c4) 33... Kf8 {[%emt 0:00:45]} ({Less strong is} 33... Bxb2 34. Nxb5 Bg7 (34... Qxb5 35. c4 $19) 35. d4 cxd4 (35... Bxd4 36. Nxd4 cxd4 37. Qd3 $15) 36. Qd3 $19) 34. Rxg7 {[%emt 0:00:30]} Kxg7 {[%emt 0:00:08]} 35. Kh2 {[%emt 0:02:12]} (35. Nc3 $142 Bc6 36. Qe1) 35... Qa5 {[%emt 0:08:34] [#] ...Bxe4 would now be deadly.} 36. Nb1 {[%emt 0:01:17]} b4 {[%emt 0:00:34] Against Nbc3} 37. Qd1 {[%emt 0:01:32]} Bxe4 {[%emt 0:01:52]} 38. fxe4 {[%emt 0:00:07][%mdl 4096] Endgame. KQR-KQN} Qc7 {[%emt 0:00:03] ( -> ...f3+)} 39. Kg1 {[%emt 0:00:20] [#]} f3 $1 {[%emt 0:02:52][%mdl 512]} 40. Qxf3 {[%emt 0:00:43]} Qf4 {[%emt 0:00:06] ...Rf8 is the strong threat.} 41. Qxf4 {[%emt 0:01:20]} gxf4 {[%emt 0:00:02] KR-KN} 42. Kf1 {[%emt 0:00:09]} Ra8 {[%emt 0:00:04] aiming for ...Ra1.} 43. Ke2 {[%emt 0:00:22]} Ra1 {[%emt 0:00:58]} 44. Nd2 {[%emt 0:00:36]} exd2 {[%emt 0:00:08] Black mates.} 45. Kxd2 {[%emt 0:00:04] KR-KP} Rg1 {[%emt 0:00:08]} 46. c3 {[%emt 0:00:48]} Rxg2+ {[%emt 0:00:06]} 47. Kc1 {[%emt 0:00:03]} f3 {[%emt 0:00:16]} 48. Kb1 {[%emt 0:00:04]} bxc3 {[%emt 0:00:46]} 49. Ka2 {[%emt 0:00:41]} f2 {[%emt 0:04:50]} 50. Ka3 {[%emt 0:00:14]} f1=Q {[%emt 0:00:55][%cal Rf1a1]} 51. Ka4 {[%emt 0:00:06]} Qxd3 {[%emt 0:00:07][%cal Rd3a6]} 52. b4 {[%emt 0:00:19]} Qa6+ {[%emt 0:01:52]} 53. Kb3 {[%emt 0:00:06]} Rxb2+ {[%emt 0:00:05]} 54. Kxc3 {[%emt 0:00:11]} Qe2 {[%emt 0:02:26][%csl Gb2][%cal Re2c2]} 55. bxc5 {[%emt 0:00:10]} Qd2+ {[%emt 0:00:03]} 56. Kc4 {[%emt 0:00:08]} Rb4# {[%emt 0:00:02] Weighted Error Value: White=0.68/Black=0.17 (very precise) .  Loses game:     	White=1     	---        Missed win:     	---       	Black=1      Mistake:       	White=7     	---        OK:         	White=12    	Black=12     Best:        	White=1     	Black=2} 0-1

[Event "Marshall CC U2400 April 2024"]
[Site "New York"]
[Date "2024.04.21"]
[Round "3.1"]
[White "Hoffman, Luc"]
[Black "Stancil, Kimani"]
[Result "1/2-1/2"]
[ECO "D00"]
[WhiteElo "2006"]
[BlackElo "1873"]
[Annotator "TA"]
[PlyCount "140"]
[EventDate "2024.04.20"]
[EventType "swiss"]
[EventCountry "USA"]
[SourceTitle "playchess.com"]
[Source "ChessBase"]
[SourceQuality "1"]
[TimeControl "5400+30"]

{[%evp 57,140,-145,-116,-130,-129,-179,-107,-184,-105,-134,-56,-59,-57,-60,-62,-58,0,0,152,-49,-6,-232,-164,-321,201,210,6398,29944,5089,-784,-765,-769,-751,-879,-866,-895,1496,-8,1788,1520,29990,-1664,-1497,-1800,-1510,-1832,-1602,-1636,-1475,-1884,-1796,-2289,-2357,-6754,-4597,-1983,-1847,-2447,-1231,-1524,0,-5856,-6753,-29949,-29951,-29969,-1063,-2997,-2488,-1727,-495,-495,-495,-495,-495,-495,-495,-495,-495,-495,-477,-470,-465,-443,8]} 1. d4 {[%emt 0:00:07]} Nf6 {[%emt 0:09:45]} 2. Bg5 {[%emt 0:00:12]} d5 {[%emt 0:01:40]} 3. e3 {[%emt 0:00:29]} a6 {[%emt 0:09:03]} 4. c4 {[%emt 0:03:55]} Ne4 $146 {[%emt 0:07:02]} ({Predecessor:} 4... c6 5. Nc3 h6 6. Bh4 e6 7. Nf3 Bd6 8. c5 Bc7 9. Bd3 Nbd7 10. O-O g5 11. Bg3 Bxg3 12. fxg3 {1-0 Goebel,K (1766)-Knoedler,M (929) Wiesbaden op 25th 2013 (2)}) 5. Bh4 {[%emt 0:03:11]} g5 {[%emt 0:03:53]} 6. f3 {[%emt 0:04:01] D00: 1 d4 d5: Unusual lines.} gxh4 {[%emt 0:00:02]} 7. fxe4 {[%emt 0:00:09]} dxe4 {[%emt 0:00:23]} 8. Nc3 {[%emt 0:00:08]} Bh6 {[%emt 0:00:17]} 9. Qd2 {[%emt 0:04:00]} Bf5 {[%emt 0:01:10]} 10. g3 {[%emt 0:00:37]} Nc6 {[%emt 0:11:16]} 11. Bg2 {[%emt 0:03:22]} e5 {[%emt 0:01:39]} 12. d5 {[%emt 0:03:07]} Nd4 {[%emt 0:05:02]} 13. O-O-O {[%emt 0:03:41]} Qg5 {[%emt 0:00:52]} 14. Re1 {[%emt 0:01:09]} O-O-O {[%emt 0:07:12]} 15. Qf2 {[%emt 0:00:49]} Rhg8 {[%emt 0:02:14]} 16. Kb1 {[%emt 0:04:26]} Kb8 {[%emt 0:15:49]} 17. Ka1 {[%emt 0:02:46]} hxg3 {[%emt 0:04:13]} 18. hxg3 {[%emt 0:00:09]} Qxg3 {[%emt 0:00:06]} 19. Qxg3 {[%emt 0:02:11]} Nc2+ {[%emt 0:00:13]} 20. Kb1 {[%emt 0:00:45]} Rxg3 {[%emt 0:00:11]} 21. Kxc2 {[%emt 0:02:54]} Rxg2+ {[%emt 0:00:51]} 22. Kb3 {[%emt 0:00:01]} Bf8 {[%emt 0:04:06]} 23. Re2 {[%emt 0:01:58]} Rg5 {[%emt 0:01:33]} 24. Nh3 {[%emt 0:00:18]} Rg3 {[%emt 0:00:11]} 25. Nf2 {[%emt 0:00:21]} Rg2 {[%emt 0:00:37]} 26. Rhe1 {[%emt 0:00:11]} Bh6 {[%emt 0:02:51]} 27. Nfxe4 {[%emt 0:00:45]} Rdg8 {[%emt 0:00:15]} 28. c5 {[%emt 0:00:59]} Rxe2 {[%emt 0:06:02]} 29. Rxe2 {[%emt 0:00:10]} Bg6 {[%emt 0:00:16]} 30. Nf6 {[%emt 0:00:29]} Rd8 {[%emt 0:00:09]} 31. e4 {[%emt 0:02:51]} (31. Ng4 $17 Bg7 32. e4) 31... Bf8 {[%emt 0:01:47]} (31... Bg5 $19 32. Ng4 Bf4) 32. Kc4 {[%emt 0:00:01]} (32. c6 $17 {is a better defense.}) 32... b5+ {[%emt 0:00:01]} (32... Be7 $19 33. Rf2 h5) 33. Kb4 {[%emt 0:01:03]} Be7 {[%emt 0:00:26]} (33... h5 $17 34. d6 (34. Rh2 $2 Be7 $19) 34... cxd6) 34. Ng4 $1 $15 {[%emt 0:00:29]} Bh5 {[%emt 0:00:32]} 35. Nxe5 $1 {[%emt 0:00:11]} Bxe2 {[%emt 0:00:26]} (35... a5+ 36. Kxa5 (36. Kxb5 Bxe2+ 37. Nxe2 Kc8 $11) 36... Bxe2 37. Nc6+ (37. Nxe2 Re8 $11) 37... Ka8 38. Nxd8 $16 (38. Nxe2 Re8 $11)) 36. Nc6+ {[%emt 0:00:01]} Ka8 {[%emt 0:02:30]} (36... Kb7 $15 37. Nxd8+ (37. Nxe7 $2 Bg4 $19) 37... Bxd8 38. Nxe2 Bf6) 37. Nxd8 $11 {[%emt 0:00:14]} (37. Nxe7 Bg4 38. Nc6 Rg8 $17) 37... Bf1 $2 {[%emt 0:01:37]} (37... Bxd8 $11 38. Nxe2 Bf6) 38. Nc6 $2 {[%emt 0:00:51]} ({White must play} 38. Nxf7 $16 {Threatens to win with d6.} a5+ 39. Kxa5 Bxc5 40. Nxb5) 38... Bg5 {[%emt 0:00:34]} 39. e5 $2 {[%emt 0:00:20]} (39. Ne5 $11 f6 40. Nd7) 39... Bg2 $1 $19 {[%emt 0:00:20]} 40. Ka5 $2 {[%emt 0:00:28]} (40. Nd4 {only move.}) 40... h5 $4 {[%emt 0:00:20][%mdl 8192]} (40... Kb7 $19 {and all is fine. ...h5 is the strong threat.} 41. Nd4 h5 42. c6+ Kc8 43. Kxa6 b4) 41. Kxa6 $18 {[%emt 0:00:15]} h4 $2 {[%emt 0:00:37]} (41... b4 42. Nb5 (42. Nxb4 $2 h4 $19) 42... Bf1) 42. Nxb5 $18 {[%emt 0:01:23]} (42. Kxb5 $2 h3 43. Nb4 h2 $19) 42... Bf1 {[%emt 0:00:05]} 43. Ncd4 $4 {[%emt 0:00:22][%mdl 8192]} (43. a4 $18 h3 44. d6 cxd6 45. Kb6 Bxb5 46. axb5) 43... h3 $19 {[%emt 0:00:51]} 44. Nf3 {[%emt 0:00:19]} Be2 {[%emt 0:00:58]} 45. Nh2 {[%emt 0:01:14]} Bf4 {[%emt 0:00:19]} 46. d6 {[%emt 0:00:55]} c6 $4 {[%emt 0:02:02][%mdl 8192] [#]} (46... Bxh2 47. d7 (47. dxc7 $2 Bxb5+ 48. Kxb5 Kb7 $19) 47... Bxb5+ 48. Kxb5 Bf4 49. d8=Q+ (49. d8=R+ Kb7 $18) 49... Ka7 50. Qxc7+ Ka8 51. c6 Bh6 52. Qb7#) (46... cxd6 $19 47. cxd6 Bxe5 (47... Bxh2 48. d7 Bxb5+ 49. Kxb5 Kb7 50. d8=Q Bxe5 51. Qb6+ Kc8 52. Kc6 h2 53. Qb7+ Kd8 54. Qd7#) (47... Bxb5+ 48. Kxb5 Kb7 49. Ng4 $19)) 47. a4 $2 {[%emt 0:00:00]} (47. Kb6 $1 $18 {Black must now prevent Nd4.} Kb8 (47... Bg5 48. Nd4) 48. d7 (48. Kxc6 $2 Bxb5+ 49. Kxb5 Bxh2 $19)) 47... Bxe5 $2 {[%emt 0:00:13][%mdl 8192]} (47... Bxh2 48. d7 Bxe5 49. d8=Q+ (49. d8=R+ Bb8 50. Kb6 Bxb5 51. axb5 h2 52. Rh8 cxb5 53. c6 h1=Q 54. Rxh1 Ba7+ 55. Kc7 Bb8+ 56. Kd7 Ka7) 49... Bb8 50. Qb6 Bxb5+ 51. axb5 cxb5 52. Qc6#) (47... cxb5 48. Kb6 Kb8 (48... Bxh2 49. d7 Bxe5 50. d8=Q+ Bb8 51. Qd5#) 49. d7 $19) (47... Kb8 $11 48. d7 Bg5 (48... Bxh2 49. d8=Q#)) 48. Kb6 $1 $18 {[%emt 0:00:11]} cxb5 {[%emt 0:00:26] [#]} 49. axb5 $4 {[%emt 0:00:23][%mdl 8192]} (49. d7 $1 {was the only winning move.} Bf6 50. c6 Bd4+ 51. Ka5 Bf6 52. c7 (52. axb5 Bxb5 53. Kxb5 Kb8 $11) 52... bxa4 53. Kb6 (53. d8=Q+ Bxd8 54. cxd8=Q+ Kb7 55. Qd7+ Kb8 56. Kb6 Ba6 57. Qc7+ Ka8 58. Qa7#) 53... Bd4+ 54. Kc6) 49... Kb8 $19 {[%emt 0:00:21]} (49... Bxh2 50. d7 Bb8 51. d8=Q (51. d8=R $2 h2 $19) 51... Bf3 52. Qc8 h2 53. Qa6+) 50. d7 {[%emt 0:01:07]} Bc7+ {[%emt 0:00:31]} (50... Bxh2 51. d8=Q#) 51. Kc6 {[%emt 0:00:12]} f5 {[%emt 0:00:24]} ({And not} 51... Bxh2 52. d8=R+ (52. d8=Q+ Ka7 53. Qb6+ Ka8 54. Qb7#) 52... Ka7 53. b6+ Ka6 54. Ra8#) 52. b6 {[%emt 0:00:15]} Bd8 {[%emt 0:00:07]} ({Weaker is} 52... Bxh2 53. d8=Q#) 53. Kd5 {[%emt 0:00:17]} Kb7 {[%emt 0:00:34]} 54. Kd6 {[%emt 0:01:12]} f4 {[%emt 0:00:23]} 55. Ke5 {[%emt 0:00:06]} f3 {[%emt 0:00:13]} 56. Ng4 {[%emt 0:00:06]} Kc6 {[%emt 0:00:09]} 57. b4 {[%emt 0:00:26]} Bc4 {[%emt 0:00:29]} 58. Kd4 {[%emt 0:01:09]} Be2 $2 {[%emt 0:01:00]} (58... Be6 $19 59. Nh2 Bxd7 (59... Kxd7 $2 60. Nxf3 Bf6+ 61. Ke4 $19) 60. Nxf3 Bf6+ 61. Ke4 Be6) 59. Ke3 $2 {[%emt 0:00:30][%mdl 8192]} (59. Ke5 $11 Kxd7 60. Kf4) 59... Kxd7 $19 {[%emt 0:00:48]} 60. Ne5+ {[%emt 0:00:00]} Kc8 {[%emt 0:01:13]} 61. Nxf3 {[%emt 0:00:02]} Bb5 {[%emt 0:01:12]} (61... Bxf3 $142 62. Kxf3 Bh4 63. c6 Kb8 64. b7 Kc7 65. b5 Kb8 66. Kg4 h2 67. Kxh4 h1=Q+ (67... h1=R+ {gets mated.} 68. Kg3 Rb1 69. Kh4 Rxb5 70. Kg3 Kc7 71. Kh3 Kxc6 72. Kg4 Rxb7 73. Kf4 Kd5 74. Kf5 Rf7+ 75. Kg6 Rf4 76. Kg5 Ke5 77. Kg6 Rf3 78. Kg7 Rf5 79. Kg6 Ke6 80. Kg7 Rf6 81. Kg8 Rg6+ 82. Kh8 Kf6 83. Kh7 Kf7 84. Kh8 Rh6#) 68. Kg4 Qd5 69. Kh4 Qxb5 70. Kg3 Qxc6 71. Kf2 Kxb7 72. Kg3 Qf6 73. Kg4 Kc6 74. Kg3 Kd5 75. Kg2 Ke4 76. Kg3 Qf3+ 77. Kh4 Qg2 78. Kh5 Kf5 79. Kh6 Qg6#) 62. Kf4 $19 {[%emt 0:00:58]} Bc6 {[%emt 0:00:08]} 63. Nh2 {[%emt 0:00:04]} Kb7 {[%emt 0:00:04]} (63... Bg2 $142 64. Kg3 Bf6) 64. Kg3 $19 {[%emt 0:00:07]} Bg2 {[%emt 0:00:16]} 65. Ng4 {[%emt 0:00:44]} Bg5 {[%emt 0:00:16]} 66. Nf2 {[%emt 0:00:18]} Bd2 {[%emt 0:00:14]} 67. Nxh3 {[%emt 0:00:08]} Bc6 {[%emt 0:00:34]} 68. Nf4 {[%emt 0:00:42]} Be4 {[%emt 0:00:43]} 69. b5 {[%emt 0:00:26]} Be3 {[%emt 0:01:06]} 70. Ne6 {[%emt 0:00:07] [#]} Bxc5 $2 {[%emt 0:00:42]} (70... Bd5 $1 $19 {[%mdl 512]} 71. Nd8+ Kc8 72. b7+ Kc7) 1/2-1/2

[Event "Marshall CC U2400 April 2024"]
[Site "New York"]
[Date "2024.04.21"]
[Round "3.3"]
[White "Wallace, Harper"]
[Black "Jiang, Jason"]
[Result "0-1"]
[ECO "D00"]
[WhiteElo "1788"]
[BlackElo "2005"]
[Annotator "TA"]
[PlyCount "68"]
[EventDate "2024.04.20"]
[EventType "swiss"]
[EventCountry "USA"]
[SourceTitle "playchess.com"]
[Source "ChessBase"]
[SourceQuality "1"]
[TimeControl "5400+30"]

{[%evp 13,68,-3,0,-25,-20,-22,-20,-132,-15,-23,-17,-30,-18,-29,-5,-22,-27,-26,-8,-32,-19,-34,-40,-103,-82,-85,-71,-72,-58,-152,-123,-108,-115,-177,-174,-185,-177,-220,-216,-222,-229,-202,-187,-317,-306,-329,-319,-325,-322,-1681,-1642,-29956,-5314,-29982,-29983,-29983,-29984]} 1. d4 {[%emt 0:00:02]} Nf6 {[%emt 0:00:13]} 2. Bg5 {[%emt 0:00:15]} d5 {[%emt 0:00:23]} 3. Bxf6 {[%emt 0:00:04]} exf6 {[%emt 0:00:11]} 4. e3 {[%emt 0:00:01]} Bd6 {[%emt 0:02:11]} 5. c4 {[%emt 0:00:02]} dxc4 {[%emt 0:03:21]} 6. Bxc4 {[%emt 0:00:12]} O-O {[%emt 0:01:23]} 7. Nc3 {[%emt 0:00:02]} f5 {[%emt 0:03:02]} 8. Nge2 {[%emt 0:00:05]} Nd7 {[%emt 0:01:57]} 9. Qc2 {[%emt 0:00:09]} Nf6 {[%emt 0:05:36]} 10. O-O {[%emt 0:00:06] [#]} (10. g3 $11 {remains equal.}) 10... Re8 {[%emt 0:04:40]} ({Black should try} 10... Bxh2+ $1 $17 11. Kxh2 Ng4+ 12. Kg3 Qg5) 11. h3 {[%emt 0:01:04]} c6 {[%emt 0:01:47]} 12. a3 {[%emt 0:01:40]} g6 {[%emt 0:02:22]} 13. Rfd1 {[%emt 0:01:24]} b5 {[%emt 0:04:03]} 14. Bb3 {[%emt 0:01:01]} Bd7 {[%emt 0:02:33]} 15. Rac1 {[%emt 0:01:38]} Qb6 {[%emt 0:01:59]} 16. Ba2 {[%emt 0:02:44]} a5 {[%emt 0:02:36]} 17. a4 {[%emt 0:01:49]} Rab8 {[%emt 0:07:42]} 18. axb5 {[%emt 0:02:01]} (18. d5 $15 c5 19. axb5) 18... cxb5 $17 {[%emt 0:00:22]} 19. Nd5 {[%emt 0:00:18]} Nxd5 {[%emt 0:01:14]} 20. Bxd5 {[%emt 0:01:33]} a4 {[%emt 0:04:14]} 21. Ra1 {[%emt 0:04:10]} (21. Bc6 $15 Bxc6 22. Qxc6) 21... Rbc8 {[%emt 0:04:46]} 22. Qd3 {[%emt 0:00:47]} b4 {[%emt 0:02:47]} 23. Rdc1 {[%emt 0:00:52]} (23. Bc4 $17) 23... Bb5 {[%emt 0:04:45]} 24. Qd1 {[%emt 0:02:11]} Rxc1 {[%emt 0:01:50]} 25. Rxc1 {[%emt 0:01:14]} Qa6 {[%emt 0:17:48]} 26. Nf4 {[%emt 0:02:41]} b3 {[%emt 0:00:53]} 27. g3 {[%emt 0:00:52]} Rc8 {[%emt 0:01:42]} 28. Ng2 {[%emt 0:00:20]} (28. Kh2 {was necessary.}) 28... Kg7 $19 {[%emt 0:00:58]} 29. Rxc8 {[%emt 0:01:07]} Qxc8 {[%emt 0:00:11]} 30. Ne1 {[%emt 0:00:21] Inhibits Qc2.} Bb4 {[%emt 0:01:39] And now ...Qd7 would win. This pair of bishops is nice.} 31. Bf3 $2 {[%emt 0:01:58]} (31. Bxb3 axb3 32. Qxb3) 31... Bxe1 {[%emt 0:02:23]} 32. Qxe1 {[%emt 0:00:07] [#]} a3 $1 {[%emt 0:00:32][%mdl 512]} 33. Qa1 {[%emt 0:04:32]} (33. Bb7 Qxb7) 33... axb2 {[%emt 0:00:40]} 34. Qxb2 {[%emt 0:00:54]} Qc2 {[%emt 0:00:30] Weighted Error Value: White=0.81/Black=0.08 (flawless) .  Mistake:       	White=6     	Black=1      Inaccurate:     	White=1     	---        OK:         	White=5     	Black=10     Best:        	---       	Black=1} 0-1

[Event "Marshall CC U2400 April 2024"]
[Site "New York"]
[Date "2024.04.21"]
[Round "3.4"]
[White "Rosenthal, Max Manuel"]
[Black "Chen, Ryan"]
[Result "1/2-1/2"]
[ECO "B43"]
[WhiteElo "1991"]
[BlackElo "1839"]
[Annotator "TA"]
[PlyCount "112"]
[EventDate "2024.04.20"]
[EventType "swiss"]
[EventCountry "USA"]
[SourceTitle "playchess.com"]
[Source "ChessBase"]
[SourceQuality "1"]
[TimeControl "5400+30"]

{[%evp 12,112,31,10,7,4,14,10,29,27,19,23,39,28,37,42,51,55,58,58,52,54,52,58,109,104,95,95,102,96,109,103,102,104,107,110,104,110,112,113,108,84,84,95,81,23,50,25,24,25,22,13,22,17,42,6,69,60,58,53,77,84,70,19,17,0,36,0,0,0,0,0,74,74,83,12,12,20,14,0,0,0,0,0,0,0,0,0,0,0,0,0,0,0,0,0,0,0,0,0,0,0,0]} 1. e4 {[%emt 0:00:04]} c5 {[%emt 0:00:20]} 2. Nf3 {[%emt 0:00:07]} e6 {[%emt 0:00:06]} 3. d4 {[%emt 0:00:03]} cxd4 {[%emt 0:00:06]} 4. Nxd4 {[%emt 0:00:05]} a6 {[%emt 0:00:06]} 5. Nc3 {[%emt 0:00:08]} b5 {[%emt 0:00:09]} 6. a3 {[%emt 0:07:13]} Bb7 {[%emt 0:00:07]} 7. Bd3 {[%emt 0:01:00]} Nf6 {[%emt 0:00:10]} 8. Qe2 {[%emt 0:05:52]} Be7 {[%emt 0:04:47]} 9. e5 {[%emt 0:02:26]} Nd5 {[%emt 0:00:24]} 10. Nxd5 {[%emt 0:00:07]} Bxd5 {[%emt 0:00:12]} 11. Qg4 {[%emt 0:00:09]} Kf8 {[%emt 0:03:18]} 12. Be4 $36 {[%emt 0:10:23][%mdl 2048] White is pushing.} Qc7 {[%emt 0:06:39]} 13. Bxd5 {[%emt 0:00:07]} Qxe5+ {[%emt 0:01:31]} 14. Qe4 {[%emt 0:00:11]} Qxd5 {[%emt 0:00:31]} 15. Qxd5 {[%emt 0:00:02]} exd5 {[%emt 0:00:23]} 16. Be3 {[%emt 0:00:05]} Nc6 {[%emt 0:02:34]} 17. O-O-O {[%emt 0:00:06]} Bf6 {[%emt 0:16:02]} (17... Bc5 $14) 18. Nf3 {[%emt 0:01:15]} d4 {[%emt 0:00:54]} 19. Nxd4 {[%emt 0:00:19]} Nxd4 {[%emt 0:02:53]} 20. Bxd4 {[%emt 0:00:04]} Bxd4 {[%emt 0:00:07]} 21. Rxd4 $16 {[%emt 0:00:04][%mdl 4096] Endgame. KRR-KRR} Ra7 {[%emt 0:00:39]} 22. Re1 {[%emt 0:01:55]} h5 {[%emt 0:08:15]} 23. Rde4 {[%emt 0:02:01]} Ra8 {[%emt 0:00:25] Repels Re8+} 24. Rd1 $1 {[%emt 0:00:03]} Ra7 {[%emt 0:00:48]} 25. Rd6 {[%emt 0:00:07]} f6 {[%emt 0:00:33]} 26. a4 {[%emt 0:00:59] White has more active pieces.} Kf7 {[%emt 0:02:32]} 27. axb5 {[%emt 0:00:39]} axb5 {[%emt 0:00:06]} 28. Rb6 {[%emt 0:00:49]} (28. Kd2 $16) 28... Ra1+ $11 {[%emt 0:00:57]} 29. Kd2 {[%emt 0:00:08][%cal Oe4d4]} Rg1 {[%emt 0:02:12]} 30. g3 {[%emt 0:01:07][%cal Oh2h4]} ({Reject} 30. Rxb5 Rxg2 31. Ke2 Rxh2 $15) 30... Rg2 {[%emt 0:00:45][%csl LRf2,LRh2]} 31. Ke3 {[%emt 0:01:45]} Rxh2 {[%emt 0:10:24]} 32. Rxb5 {[%emt 0:00:07]} g5 {[%emt 0:01:41]} 33. Rb7 {[%emt 0:00:24]} h4 {[%emt 0:08:58]} ({Black should try} 33... Rd8 $11) 34. Rxd7+ {[%emt 0:00:13]} Kg6 {[%emt 0:00:01]} 35. gxh4 {[%emt 0:05:37]} gxh4 {[%emt 0:00:01]} 36. Rg4+ {[%emt 0:21:24]} Kf5 {[%emt 0:01:03]} 37. Rg1 {[%emt 0:00:04]} ({Better is} 37. Rf4+ $14 Ke6 38. Rc7) 37... Rh3+ {[%emt 0:03:23]} 38. Ke2 {[%emt 0:02:34]} Re8+ {[%emt 0:00:15]} 39. Kd2 {[%emt 0:01:32]} Rh2 {[%emt 0:01:38]} 40. Rf1 {[%emt 0:00:40]} h3 {[%emt 0:05:11]} 41. Rh7 {[%emt 0:19:50]} Kg4 {[%emt 0:07:18] [#]} (41... Rb8 $11) 42. c4 $1 $16 {[%emt 0:00:43][%cal Bc2c4,Bc4c5,Bc5c6,Bc6c7][%mdl 32] Black must now prevent c5.} Rg2 {[%emt 0:02:50] [#]} 43. Kc3 {[%emt 0:03:12]} (43. Kd3 $1 $16) 43... Re2 $11 {[%emt 0:04:54][%cal Oh3h2] The position is equal.} 44. c5 {[%emt 0:00:43] b4 would now be deadly.} h2 $1 {[%emt 0:00:48][%cal Og4f3]} 45. c6 {[%emt 0:03:08] Hoping for b4.} Re6 $1 {[%emt 0:03:32]} 46. c7 {[%emt 0:00:05]} Rc6+ {[%emt 0:00:08]} 47. Kd4 {[%emt 0:00:11] aiming for Kd5.} Rg1 {[%emt 0:01:31]} 48. Rxg1+ {[%emt 0:03:37]} hxg1=Q {[%emt 0:00:03]} 49. Rg7+ {[%emt 0:00:11]} Kf3 {[%emt 0:00:09]} 50. Rxg1 {[%emt 0:00:03] Rg3+ would kill now.} Rxc7 {[%emt 0:00:11] KR-KR} 51. Rb1 {[%emt 0:00:52]} Kxf2 {[%emt 0:00:56]} 52. Ke4 {[%emt 0:00:57]} Rc4+ {[%emt 0:00:45]} 53. Kd5 {[%emt 0:01:00]} Rb4 {[%emt 0:00:14]} 54. Kc5 {[%emt 0:00:25]} Rb3 {[%emt 0:00:05]} 55. Kc4 {[%emt 0:00:04]} Rb8 {[%emt 0:00:10]} 56. b4 {[%emt 0:00:27]} f5 {[%emt 0:00:23] Weighted Error Value: White=0.10 (very precise) /Black=0.08 (flawless) .  Mistake:       	White=3     	Black=3      Inaccurate:     	White=2     	Black=1      OK:         	White=20    	Black=22     Best:        	White=4     	Black=6      Strong:       	White=2     	Black=2} 1/2-1/2